[Event "Hungarian Youth-ch I 2024"]
[Site "Szolnok"]
[Date "2024.04.05"]
[Round "7.19"]
[White "Golya, David"]
[Black "Botond, Laszlo"]
[Result "1-0"]
[ECO "B40"]
[WhiteElo "1672"]
[BlackElo "1831"]
[Annotator "NA RC"]
[PlyCount "113"]
[EventDate "2024.03.31"]
[EventType "swiss"]
[EventCountry "HUN"]
[SourceTitle "playchess.com"]
[Source "ChessBase"]
[SourceQuality "1"]
[TimeControl "5400+30"]

1. e4 {[%emt 0:00:03]} c5 {[%emt 0:00:10]} 2. Nf3 {[%emt 0:00:03]} e6 {[%emt 0:00:30]} 3. d4 {[%emt 0:00:20]} cxd4 {[%emt 0:00:20]} 4. Nxd4 {[%emt 0:00:05]} Nf6 {[%emt 0:01:05]} 5. Nc3 {[%emt 0:01:24]} Bb4 {[%emt 0:01:14]} 6. Bd3 {[%emt 0:01:30]} h6 {[%emt 0:04:18] B40: Sicilian: 2...e6, Unusual lines.} 7. O-O {[%emt 0:02:13]} O-O {[%emt 0:02:19]} 8. Bf4 {[%emt 0:01:28]} d6 {[%emt 0:07:44]} 9. Bg3 {[%emt 0:02:52]} Nc6 {[%emt 0:05:02]} 10. Nxc6 {[%emt 0:03:57]} bxc6 {[%emt 0:01:33]} 11. a3 {[%emt 0:00:51]} Bc5 {[%emt 0:03:24]} (11... Bxc3 $11 12. bxc3 e5) 12. Qe2 {[%emt 0:05:54]} d5 {[%emt 0:12:35]} 13. e5 {[%emt 0:02:41]} Nd7 {[%emt 0:00:49]} 14. Qg4 {[%emt 0:01:24]} Qg5 {[%emt 0:03:43]} 15. Qxg5 {[%emt 0:02:32]} hxg5 {[%emt 0:00:28]} 16. Ne2 {[%emt 0:01:00]} (16. Na4 $15 {deserves consideration.}) 16... f6 {[%emt 0:01:48]} 17. exf6 {[%emt 0:00:40]} gxf6 {[%emt 0:00:26]} 18. b4 {[%emt 0:00:22]} Be7 {[%emt 0:01:42]} 19. Nd4 {[%emt 0:01:00]} Nb8 {[%emt 0:05:24]} 20. Bxb8 {[%emt 0:00:55]} Rxb8 {[%emt 0:01:50]} 21. Nxc6 {[%emt 0:00:27]} Rb7 {[%emt 0:00:14]} 22. Ba6 {[%emt 0:01:16]} Rc7 {[%emt 0:00:12]} 23. Bxc8 {[%emt 0:00:19]} Rfxc8 {[%emt 0:00:32]} 24. b5 {[%emt 0:00:26]} Bd6 {[%emt 0:00:42]} 25. Rfe1 {[%emt 0:00:48]} e5 {[%emt 0:00:28]} 26. a4 {[%emt 0:00:34]} Ra8 {[%emt 0:02:31]} 27. Rad1 {[%emt 0:00:51]} d4 {[%emt 0:01:09]} 28. c3 {[%emt 0:00:33]} a6 {[%emt 0:06:45]} 29. cxd4 {[%emt 0:00:28]} axb5 {[%emt 0:01:08]} 30. axb5 {[%emt 0:00:16]} exd4 {[%emt 0:00:22]} 31. Rxd4 {[%emt 0:00:22]} Bc5 {[%emt 0:00:57]} 32. Rd5 {[%emt 0:00:40]} Bf8 {[%emt 0:00:55]} 33. h3 {[%emt 0:00:28]} Ra2 {[%emt 0:02:48]} 34. Re6 {[%emt 0:03:07]} Kg7 {[%emt 0:00:58]} 35. b6 {[%emt 0:00:12]} Rb7 {[%emt 0:00:21]} 36. Nd8 {[%emt 0:00:16]} Rb8 {[%emt 0:00:45]} 37. b7 {[%emt 0:00:24]} Ra1+ {[%emt 0:01:29]} 38. Kh2 {[%emt 0:00:07]} Bc5 {[%emt 0:01:35]} 39. Rd7+ {[%emt 0:00:47]} Kg6 {[%emt 0:00:28]} 40. Nc6 {[%emt 0:00:08]} Ba7 {[%emt 0:00:54]} 41. Nxb8 {[%emt 0:00:19]} Bxb8+ {[%emt 0:00:25]} 42. g3 {[%emt 0:00:06]} g4 {[%emt 0:00:31]} 43. hxg4 {[%emt 0:00:39]} Kg5 {[%emt 0:00:13]} 44. Rg7+ {[%emt 0:00:54]} Kh6 {[%emt 0:00:13]} 45. Rg8 {[%emt 0:01:02]} Kh7 {[%emt 0:00:28]} 46. Ree8 {[%emt 0:00:13]} f5 {[%emt 0:00:47]} 47. Rh8+ {[%emt 0:00:10]} Kg7 {[%emt 0:00:12]} 48. Rxb8 {[%emt 0:00:44]} fxg4 {[%emt 0:00:13]} 49. Rbg8+ {[%emt 0:00:07]} Kf6 {[%emt 0:00:37]} 50. b8=Q {[%emt 0:00:09]} Rh1+ {[%emt 0:00:48]} 51. Kxh1 {[%emt 0:00:05]} Ke6 {[%emt 0:00:25]} 52. Rh6+ {[%emt 0:00:07]} Kd5 {[%emt 0:00:09]} 53. Qd6+ {[%emt 0:00:11]} Ke4 {[%emt 0:00:08]} 54. Rxg4+ {[%emt 0:00:11]} Kf3 {[%emt 0:00:16]} 55. Rf4+ {[%emt 0:00:21]} Ke2 {[%emt 0:00:14]} 56. Re6+ {[%emt 0:00:04]} Kf1 {[%emt 0:00:41]} 57. Qd1# 1-0

[Event "Hungarian Youth-ch I 2024"]
[Site "Szolnok"]
[Date "2024.04.05"]
[Round "7.20"]
[White "Koncz, Botond"]
[Black "Fan, Xiaotong"]
[Result "0-1"]
[ECO "B24"]
[WhiteElo "1474"]
[BlackElo "1731"]
[Annotator "NA RC"]
[PlyCount "66"]
[EventDate "2024.03.31"]
[EventType "swiss"]
[EventCountry "HUN"]
[SourceTitle "playchess.com"]
[Source "ChessBase"]
[SourceQuality "1"]
[TimeControl "5400+30"]

1. e4 {[%emt 0:00:03]} c5 {[%emt 0:00:03]} 2. Nc3 {[%emt 0:00:10]} Nc6 {[%emt 0:00:05]} 3. g3 {[%emt 0:00:20]} g6 {[%emt 0:00:15]} 4. Bg2 {[%emt 0:00:19]} Bg7 {[%emt 0:00:11]} 5. Nge2 {[%emt 0:00:34]} e6 {[%emt 0:01:19]} 6. d3 {[%emt 0:00:28]} d6 {[%emt 0:00:37]} 7. Be3 {[%emt 0:00:31]} Nd4 {[%emt 0:00:12]} 8. Qd2 {[%emt 0:00:47]} Rb8 {[%emt 0:00:16]} 9. O-O {[%emt 0:02:30]} Ne7 {[%emt 0:00:56]} 10. f4 {[%emt 0:03:06]} O-O {[%emt 0:04:45]} 11. Nd1 {[%emt 0:04:11]} Bd7 {[%emt 0:04:06]} 12. c3 {[%emt 0:03:35]} Nxe2+ {[%emt 0:03:35]} 13. Qxe2 {[%emt 0:00:07]} Bc6 {[%emt 0:06:07]} 14. Nf2 {[%emt 0:04:25]} f5 {[%emt 0:10:23]} 15. Rfd1 {[%emt 0:03:35]} b6 {[%emt 0:13:36]} 16. Rab1 {[%emt 0:09:39]} Qc7 {[%emt 0:05:20]} 17. Bd2 {[%emt 0:06:00]} e5 {[%emt 0:06:02]} 18. Re1 {[%emt 0:08:01]} Rbe8 {[%emt 0:01:46]} 19. Kh1 {[%emt 0:04:08]} Qb7 {[%emt 0:06:51]} 20. c4 {[%emt 0:02:47]} fxe4 {[%emt 0:04:40]} 21. Nxe4 {[%emt 0:00:51]} Qc7 {[%emt 0:00:54]} 22. Ng5 {[%emt 0:07:20]} Nf5 {[%emt 0:01:56]} 23. Qd1 {[%emt 0:05:55]} Qb7 {[%emt 0:04:00]} 24. Ne4 {[%emt 0:01:31]} d5 {[%emt 0:02:06]} 25. cxd5 {[%emt 0:01:22]} Bxd5 {[%emt 0:00:25]} 26. Qc2 {[%emt 0:00:28]} Nd4 {[%emt 0:04:09]} 27. Qc3 {[%emt 0:02:06]} exf4 {[%emt 0:05:16]} 28. Qc1 {[%emt 0:02:05]} f3 {[%emt 0:00:18]} 29. Bf1 {[%emt 0:00:34]} Bxe4 {[%emt 0:00:28]} 30. dxe4 {[%emt 0:00:47]} Rxe4 {[%emt 0:00:27]} 31. Re3 {[%emt 0:01:03]} Rxe3 {[%emt 0:01:15]} 32. Bxe3 {[%emt 0:00:04]} f2+ {[%emt 0:00:08]} 33. Bg2 {[%emt 0:00:13]} f1=Q+ {[%emt 0:00:23]} 0-1

[Event "Hungarian Youth-ch I 2024"]
[Site "Szolnok"]
[Date "2024.04.05"]
[Round "7.21"]
[White "Sipos, Stefania"]
[Black "Alexandrova, Angelina"]
[Result "1-0"]
[ECO "C18"]
[WhiteElo "1885"]
[BlackElo "1812"]
[Annotator "NA RC"]
[PlyCount "49"]
[EventDate "2024.03.31"]
[EventType "swiss"]
[EventCountry "HUN"]
[SourceTitle "playchess.com"]
[Source "ChessBase"]
[SourceQuality "1"]
[TimeControl "5400+30"]

1. e4 e6 {[%emt 0:00:03]} 2. d4 {[%emt 0:00:09]} d5 {[%emt 0:00:30]} 3. Nc3 {[%emt 0:00:30]} Bb4 {[%emt 0:00:00]} 4. e5 {[%emt 0:00:00]} c5 {[%emt 0:00:00]} 5. a3 {[%emt 0:00:00]} Bxc3+ {[%emt 0:00:00]} 6. bxc3 {[%emt 0:00:00]} Ne7 {[%emt 0:00:00]} 7. h4 {[%emt 0:00:22]} Qc7 {[%emt 0:00:12]} 8. h5 {[%emt 0:00:14] C18: French: 3 Nc3 Bb4: Main line: 7 h4 and 7 Qg4.} h6 {[%emt 0:00:30]} 9. Rb1 {[%emt 0:00:26]} Nbc6 {[%emt 0:05:38]} 10. Qg4 {[%emt 0:02:13]} Kf8 {[%emt 0:01:35]} 11. Rh3 {[%emt 0:07:30]} Nf5 {[%emt 0:02:22]} 12. Qf4 {[%emt 0:04:31]} b6 {[%emt 0:09:11]} 13. g4 {[%emt 0:10:16]} Nfe7 {[%emt 0:00:18]} 14. Rf3 {[%emt 0:01:37]} Nd8 {[%emt 0:02:42]} 15. Bd3 {[%emt 0:06:31]} c4 {[%emt 0:05:53]} 16. Bf1 {[%emt 0:03:15]} Bd7 {[%emt 0:05:27]} 17. Bh3 {[%emt 0:05:16]} Ba4 {[%emt 0:05:59]} 18. Kd1 {[%emt 0:02:44]} Ke8 {[%emt 0:02:41]} 19. Qg3 {[%emt 0:06:47]} Kd7 {[%emt 0:13:30]} 20. g5 {[%emt 0:09:19]} hxg5 {[%emt 0:00:38]} 21. Bxg5 {[%emt 0:01:40]} Rxh5 $2 {[%emt 0:14:00]} ({Better is} 21... Kc8 $14) 22. Bxe7 {[%emt 0:02:06]} Kxe7 {[%emt 0:00:05]} 23. Qxg7 {[%emt 0:00:32]} Qc6 $18 {[%emt 0:06:02]} 24. Ne2 {[%emt 0:05:24]} Qe8 {[%emt 0:01:35]} 25. Nf4 {[%emt 0:02:43]} 1-0

[Event "Hungarian Youth-ch I 2024"]
[Site "Szolnok"]
[Date "2024.04.05"]
[Round "7.22"]
[White "Kiraly, Lilla Virag"]
[Black "Buri, Petra Zsuzsanna"]
[Result "0-1"]
[ECO "A45"]
[WhiteElo "1923"]
[BlackElo "1972"]
[Annotator "RC"]
[PlyCount "110"]
[EventDate "2024.03.31"]
[EventType "swiss"]
[EventCountry "HUN"]
[SourceTitle "playchess.com"]
[Source "ChessBase"]
[SourceQuality "1"]
[TimeControl "5400+30"]

1. d4 {[%emt 0:00:10]} Nf6 {[%emt 0:00:14]} 2. Bf4 {[%emt 0:00:15]} g6 {[%emt 0:00:16]} 3. e3 {[%emt 0:00:21]} Bg7 {[%emt 0:00:24]} 4. Nf3 {[%emt 0:00:28]} O-O {[%emt 0:00:30]} 5. h3 {[%emt 0:00:28]} d6 {[%emt 0:00:50]} 6. Be2 {[%emt 0:00:30]} b6 {[%emt 0:00:55]} 7. c4 {[%emt 0:01:57]} Bb7 {[%emt 0:01:28]} 8. Bh2 {[%emt 0:01:38]} Nbd7 {[%emt 0:01:28]} 9. Nc3 {[%emt 0:03:35]} Re8 {[%emt 0:07:11]} 10. O-O {[%emt 0:02:00]} e5 {[%emt 0:04:51]} 11. b4 {[%emt 0:16:29]} Ne4 {[%emt 0:12:40]} 12. Nxe4 {[%emt 0:11:04]} Bxe4 {[%emt 0:00:23]} 13. Rc1 {[%emt 0:01:23]} Qe7 {[%emt 0:06:06]} 14. Nd2 {[%emt 0:08:22]} Nf6 {[%emt 0:24:10]} 15. Nxe4 {[%emt 0:09:04]} Nxe4 {[%emt 0:00:08]} 16. Bf3 {[%emt 0:00:35]} exd4 {[%emt 0:02:12]} 17. exd4 {[%emt 0:03:19]} Qh4 {[%emt 0:06:41]} 18. Rc2 {[%emt 0:17:53]} Rad8 {[%emt 0:03:49]} 19. Kh1 {[%emt 0:04:39]} Bxd4 {[%emt 0:05:05]} 20. Bg3 {[%emt 0:01:38]} Qf6 {[%emt 0:00:41]} 21. Qd3 {[%emt 0:02:14]} Nxg3+ {[%emt 0:01:35]} 22. fxg3 {[%emt 0:00:14]} Re3 {[%emt 0:00:39]} 23. Qd1 {[%emt 0:00:46]} Qe5 {[%emt 0:03:30]} 24. Bd5 {[%emt 0:00:37]} Kh8 {[%emt 0:00:54]} 25. Rcf2 {[%emt 0:02:47]} f5 {[%emt 0:03:13]} 26. Rf4 {[%emt 0:00:29]} c5 {[%emt 0:00:15]} 27. g4 {[%emt 0:01:29]} Re8 {[%emt 0:01:56]} 28. gxf5 {[%emt 0:01:21]} Qxf4 {[%emt 0:01:01]} 29. Rxf4 {[%emt 0:01:50]} Re1+ {[%emt 0:00:06]} 30. Rf1 {[%emt 0:00:31]} Rxd1 {[%emt 0:00:05]} 31. Rxd1 {[%emt 0:00:11]} gxf5 {[%emt 0:00:07]} 32. b5 {[%emt 0:02:09]} Re2 {[%emt 0:01:06]} 33. a3 {[%emt 0:01:03]} Re3 {[%emt 0:01:11]} 34. Rf1 {[%emt 0:01:28]} f4 {[%emt 0:05:23]} 35. a4 {[%emt 0:01:39]} Ra3 {[%emt 0:00:21]} 36. g3 {[%emt 0:01:10]} fxg3 {[%emt 0:02:11]} 37. Rf8+ {[%emt 0:01:25]} Kg7 {[%emt 0:00:04]} 38. Rg8+ {[%emt 0:00:42]} Kf6 {[%emt 0:00:28]} 39. Kg2 {[%emt 0:00:14]} Be5 {[%emt 0:00:19]} 40. h4 {[%emt 0:01:32]} Kf5 {[%emt 0:01:15]} 41. Rf8+ {[%emt 0:00:31]} Kg4 {[%emt 0:00:13]} 42. Bf3+ {[%emt 0:00:26]} Kxh4 {[%emt 0:00:37]} 43. Rf5 {[%emt 0:00:18]} Ra2+ {[%emt 0:00:36]} 44. Kf1 {[%emt 0:00:23]} g2+ {[%emt 0:01:17]} 45. Bxg2 {[%emt 0:00:19]} Rxa4 {[%emt 0:00:37]} 46. Bd5 {[%emt 0:00:23]} Ra2 {[%emt 0:00:31]} 47. Rf7 {[%emt 0:00:50]} h6 {[%emt 0:00:26]} 48. Bb7 {[%emt 0:00:39]} Kg5 {[%emt 0:00:24]} 49. Ba6 {[%emt 0:00:25]} Ra4 {[%emt 0:00:55]} 50. Rxa7 {[%emt 0:00:13]} Rxc4 {[%emt 0:00:03]} 51. Rb7 {[%emt 0:00:15]} h5 {[%emt 0:00:37]} 52. Rxb6 {[%emt 0:00:13]} h4 {[%emt 0:00:08]} 53. Rb8 {[%emt 0:00:13]} h3 {[%emt 0:00:41]} 54. Rg8+ {[%emt 0:01:31]} Kf4 {[%emt 0:00:13]} 55. Bb7 {[%emt 0:00:48]} Ke3 {[%emt 0:00:29]} 0-1

[Event "Hungarian Youth-ch I 2024"]
[Site "Szolnok"]
[Date "2024.04.05"]
[Round "7.23"]
[White "Kovacs, Veronika"]
[Black "Harkai, Emma"]
[Result "1/2-1/2"]
[ECO "A13"]
[WhiteElo "1931"]
[BlackElo "1918"]
[Annotator "RC"]
[PlyCount "75"]
[EventDate "2024.03.31"]
[EventType "swiss"]
[EventCountry "HUN"]
[SourceTitle "playchess.com"]
[Source "ChessBase"]
[SourceQuality "1"]
[TimeControl "5400+30"]

1. c4 {[%emt 0:00:03]} e6 {[%emt 0:00:10]} 2. Nf3 {[%emt 0:00:13]} d5 {[%emt 0:00:25]} 3. g3 {[%emt 0:00:11]} Nf6 {[%emt 0:00:14]} 4. Bg2 {[%emt 0:00:10]} dxc4 {[%emt 0:00:50]} 5. Qa4+ {[%emt 0:01:13]} Bd7 {[%emt 0:00:35]} 6. Qxc4 {[%emt 0:00:37]} c5 {[%emt 0:00:55]} 7. O-O {[%emt 0:01:29]} Nc6 {[%emt 0:06:11]} 8. d4 {[%emt 0:10:04]} cxd4 {[%emt 0:03:28]} 9. Nxd4 {[%emt 0:00:21]} Rc8 {[%emt 0:02:23]} 10. Nxc6 {[%emt 0:16:01]} Bxc6 {[%emt 0:00:19]} 11. Bxc6+ {[%emt 0:00:14]} Rxc6 {[%emt 0:00:30]} 12. Qb5 {[%emt 0:00:23]} Qc8 {[%emt 0:04:28]} 13. Nc3 {[%emt 0:03:50]} a6 {[%emt 0:05:42]} 14. Qb3 {[%emt 0:00:46]} Be7 {[%emt 0:02:40]} 15. Bf4 {[%emt 0:02:03]} O-O {[%emt 0:03:27]} 16. Rac1 {[%emt 0:00:48]} b5 {[%emt 0:07:20]} 17. Nb1 {[%emt 0:14:03]} Nd5 {[%emt 0:03:32]} 18. Rxc6 {[%emt 0:00:42]} Qxc6 {[%emt 0:00:13]} 19. Rc1 {[%emt 0:00:26]} Qb6 {[%emt 0:04:27]} 20. Bd2 {[%emt 0:02:05]} Bc5 {[%emt 0:03:35]} 21. e3 {[%emt 0:04:42]} b4 {[%emt 0:11:26]} 22. Kg2 {[%emt 0:20:15]} Nf6 {[%emt 0:09:56]} 23. Qc4 {[%emt 0:01:09]} Nd7 {[%emt 0:07:11]} 24. Be1 {[%emt 0:01:28]} a5 {[%emt 0:03:13]} 25. Nd2 {[%emt 0:01:17]} Qb7+ {[%emt 0:08:33]} 26. Kg1 {[%emt 0:00:21]} Be7 {[%emt 0:04:12]} 27. Qc7 {[%emt 0:03:18]} Qd5 {[%emt 0:01:34]} 28. Qc4 {[%emt 0:03:45]} Nb6 {[%emt 0:02:25]} 29. Qxd5 {[%emt 0:02:33]} Nxd5 {[%emt 0:00:07]} 30. e4 {[%emt 0:02:04]} Nb6 {[%emt 0:01:08]} 31. Rc6 {[%emt 0:01:18]} Rb8 {[%emt 0:01:43]} 32. f4 {[%emt 0:02:50]} Na4 {[%emt 0:00:49]} 33. Nc4 {[%emt 0:00:27]} Nc5 {[%emt 0:00:27]} 34. e5 {[%emt 0:01:39]} Nd3 {[%emt 0:02:03]} 35. Bf2 {[%emt 0:00:43]} a4 {[%emt 0:00:51]} 36. Bd4 {[%emt 0:02:52]} b3 {[%emt 0:00:33]} 37. axb3 {[%emt 0:00:48]} axb3 {[%emt 0:00:13]} 38. Bc3 {[%emt 0:01:03]} 1/2-1/2

[Event "Hungarian Youth-ch I 2024"]
[Site "Szolnok"]
[Date "2024.04.05"]
[Round "7.24"]
[White "Kovacs, Reka"]
[Black "Balazs, Sztella Anna"]
[Result "0-1"]
[ECO "B32"]
[WhiteElo "1855"]
[BlackElo "1805"]
[Annotator "NA RC"]
[PlyCount "136"]
[EventDate "2024.03.31"]
[EventType "swiss"]
[EventCountry "HUN"]
[SourceTitle "playchess.com"]
[Source "ChessBase"]
[SourceQuality "1"]
[TimeControl "5400+30"]

1. e4 {[%emt 0:00:03]} c5 {[%emt 0:00:03]} 2. Nf3 {[%emt 0:00:04]} Nc6 {[%emt 0:00:04]} 3. d4 {[%emt 0:00:05]} cxd4 {[%emt 0:00:03]} 4. Nxd4 {[%emt 0:00:06]} e5 {[%emt 0:00:04]} 5. Nb5 {[%emt 0:00:16]} d6 {[%emt 0:00:05]} 6. N1c3 {[%emt 0:00:13]} a6 {[%emt 0:00:04]} 7. Na3 {[%emt 0:00:05]} Be6 {[%emt 0:00:04]} 8. Nc4 {[%emt 0:03:44]} Rb8 {[%emt 0:00:12] B32: Sicilian: Löwenthal and Kalashnikov Variations.} 9. Bd3 {[%emt 0:10:14]} Nf6 {[%emt 0:04:22]} 10. Bg5 {[%emt 0:04:10]} Be7 {[%emt 0:00:35]} 11. Bxf6 {[%emt 0:07:58]} Bxf6 {[%emt 0:01:51]} 12. Ne3 {[%emt 0:01:29]} O-O {[%emt 0:05:56]} 13. Ncd5 {[%emt 0:04:18]} Bg5 {[%emt 0:03:09]} 14. h4 {[%emt 0:01:32]} Bxe3 {[%emt 0:00:55]} 15. Nxe3 {[%emt 0:00:21]} Qa5+ {[%emt 0:09:00]} 16. c3 {[%emt 0:02:38]} Rbd8 {[%emt 0:01:13]} 17. O-O {[%emt 0:09:09]} Ne7 {[%emt 0:05:26]} 18. Qf3 {[%emt 0:03:01]} d5 {[%emt 0:15:43]} 19. exd5 {[%emt 0:02:19]} Nxd5 {[%emt 0:00:10]} 20. Nxd5 {[%emt 0:10:27]} Bxd5 {[%emt 0:00:15]} 21. Qf5 {[%emt 0:02:36]} g6 {[%emt 0:00:10]} 22. Qxe5 {[%emt 0:01:18]} Qb6 {[%emt 0:00:28]} 23. Qe2 {[%emt 0:02:35]} Rfe8 {[%emt 0:01:41]} 24. Qc2 {[%emt 0:01:51]} Qf6 {[%emt 0:00:29]} 25. h5 {[%emt 0:10:54]} Qg5 $2 {[%emt 0:00:24]} ({Stronger than} 25... gxh5 26. Rfd1 $11 (26. Bxh7+ Kh8 $14)) (25... Bxg2 $19 {and Black stays clearly on top.} 26. Kxg2 Qg5+ (26... gxh5 $2 {is the wrong capture.} 27. Rfe1 $18) 27. Kh3 Qxh5+ (27... gxh5 $2 28. Rg1 $18) 28. Kg3 Rd5 (28... Qg5+ $2 29. Kh3 $19)) 26. f4 {[%emt 0:05:48]} Qxh5 {[%emt 0:02:56]} 27. c4 {[%emt 0:05:40]} Bc6 {[%emt 0:01:34]} 28. f5 {[%emt 0:02:12]} Bxg2 {[%emt 0:07:45]} 29. fxg6 {[%emt 0:05:48]} hxg6 {[%emt 0:03:08]} 30. Qxg2 {[%emt 0:01:47]} Rxd3 {[%emt 0:00:11]} 31. Rae1 {[%emt 0:00:37]} Rde3 {[%emt 0:05:02]} 32. Rxe3 {[%emt 0:01:23]} Rxe3 {[%emt 0:00:06]} 33. b3 {[%emt 0:01:26]} Qh4 {[%emt 0:01:05]} 34. Rf3 {[%emt 0:00:27]} Re5 {[%emt 0:03:54]} 35. Rg3 {[%emt 0:00:47]} Re1+ {[%emt 0:02:15]} 36. Kf2 {[%emt 0:00:01]} Qe4 {[%emt 0:00:11]} 37. Qxe4 {[%emt 0:00:15]} Rxe4 {[%emt 0:00:03]} 38. Rd3 {[%emt 0:00:10]} Re7 {[%emt 0:00:27]} 39. c5 {[%emt 0:00:28]} f5 {[%emt 0:01:21]} 40. c6 {[%emt 0:00:30]} Kf7 {[%emt 0:00:24]} 41. Rc3 {[%emt 0:00:32]} bxc6 {[%emt 0:00:22]} 42. Rxc6 {[%emt 0:00:01]} Re6 {[%emt 0:00:05]} 43. Rc5 {[%emt 0:01:16]} Kf6 {[%emt 0:00:35]} 44. b4 {[%emt 0:00:06]} Rb6 {[%emt 0:02:24]} 45. a4 {[%emt 0:01:16]} Rxb4 {[%emt 0:00:46]} 46. Rc6+ {[%emt 0:00:01]} Kg5 {[%emt 0:00:18]} 47. Rxa6 {[%emt 0:00:07]} Rb2+ {[%emt 0:00:04]} 48. Kf3 {[%emt 0:00:14]} Ra2 {[%emt 0:00:04]} 49. a5 {[%emt 0:00:21]} Ra3+ {[%emt 0:00:00]} 50. Kf2 {[%emt 0:00:19]} f4 {[%emt 0:00:29]} 51. Kg2 {[%emt 0:00:08]} Kf5 {[%emt 0:00:12]} 52. Ra8 {[%emt 0:00:16]} g5 {[%emt 0:00:09]} 53. a6 {[%emt 0:00:10]} Kg4 {[%emt 0:00:12]} 54. a7 {[%emt 0:00:37]} f3+ {[%emt 0:00:17]} 55. Kf2 {[%emt 0:00:11]} Ra2+ {[%emt 0:00:06]} 56. Ke3 {[%emt 0:00:54]} Kg3 {[%emt 0:01:29]} 57. Rg8 {[%emt 0:00:50]} Ra3+ {[%emt 0:01:09]} 58. Ke4 {[%emt 0:01:49]} f2 {[%emt 0:05:08]} 59. Rxg5+ {[%emt 0:00:18]} Kh2 {[%emt 0:00:09]} 60. Rf5 {[%emt 0:00:56]} Kg2 {[%emt 0:00:54]} 61. Rg5+ {[%emt 0:00:16]} Kf1 {[%emt 0:00:10]} 62. Rb5 {[%emt 0:01:35]} Rxa7 {[%emt 0:00:56]} 63. Kf3 {[%emt 0:00:29]} Ra3+ {[%emt 0:03:35]} 64. Kf4 {[%emt 0:00:18]} Rd3 {[%emt 0:00:54]} 65. Re5 {[%emt 0:00:15]} Kg2 {[%emt 0:00:58]} 66. Rg5+ {[%emt 0:00:14]} Kh2 {[%emt 0:00:15]} 67. Rh5+ {[%emt 0:01:15]} Rh3 {[%emt 0:00:09]} 68. Kg4 {[%emt 0:00:28]} Rxh5 {[%emt 0:00:08]} ({And not} 68... f1=B 69. Rxh3+ Bxh3+ $11) 0-1

[Event "Hungarian Youth-ch I 2024"]
[Site "Szolnok"]
[Date "2024.04.05"]
[Round "7.25"]
[White "Toth, Timea"]
[Black "Nandin-Erdene, Davaademberel"]
[Result "1/2-1/2"]
[ECO "B12"]
[WhiteElo "1978"]
[BlackElo "1978"]
[Annotator "RC"]
[PlyCount "101"]
[EventDate "2024.03.31"]
[EventType "swiss"]
[EventCountry "HUN"]
[SourceTitle "playchess.com"]
[Source "ChessBase"]
[SourceQuality "1"]
[TimeControl "5400+30"]

1. e4 {[%emt 0:00:02]} c6 {[%emt 0:00:08]} 2. d4 {[%emt 0:00:03]} g6 {[%emt 0:00:15]} 3. Nf3 {[%emt 0:00:43]} Bg7 {[%emt 0:00:13]} 4. Be2 {[%emt 0:00:50]} d6 {[%emt 0:00:35]} 5. h3 {[%emt 0:01:07]} Nd7 {[%emt 0:04:35]} 6. c3 {[%emt 0:10:03]} Qc7 {[%emt 0:03:18]} 7. Bf4 {[%emt 0:01:48]} e5 {[%emt 0:05:03]} 8. dxe5 {[%emt 0:05:14]} dxe5 {[%emt 0:00:34]} 9. Bh2 {[%emt 0:01:29]} Ngf6 {[%emt 0:02:59]} 10. Nbd2 {[%emt 0:00:15]} O-O {[%emt 0:02:05]} 11. Qc2 {[%emt 0:06:19]} b5 {[%emt 0:04:41]} 12. a4 {[%emt 0:05:11]} Rb8 {[%emt 0:05:29]} 13. axb5 {[%emt 0:02:12]} cxb5 {[%emt 0:01:23]} 14. O-O {[%emt 0:22:01]} Re8 {[%emt 0:13:47]} 15. b4 {[%emt 0:05:14]} Bf8 {[%emt 0:10:02]} 16. Rfc1 {[%emt 0:05:06]} Bd6 {[%emt 0:11:08]} 17. Qa2 {[%emt 0:13:47]} Bb7 {[%emt 0:13:58]} 18. Bxb5 {[%emt 0:08:10]} Bxe4 {[%emt 0:11:16]} 19. Bc4 {[%emt 0:02:34]} Nb6 {[%emt 0:01:36]} 20. Bxf7+ {[%emt 0:04:17]} Qxf7 {[%emt 0:03:42]} 21. Qxf7+ {[%emt 0:00:06]} Kxf7 {[%emt 0:00:09]} 22. Ng5+ {[%emt 0:00:04]} Ke7 {[%emt 0:01:17]} 23. Ngxe4 {[%emt 0:00:08]} Rb7 {[%emt 0:00:49]} 24. Nxf6 {[%emt 0:01:08]} Kxf6 {[%emt 0:00:06]} 25. Ne4+ {[%emt 0:00:11]} Ke6 {[%emt 0:00:10]} 26. Nxd6 {[%emt 0:00:15]} Kxd6 {[%emt 0:00:04]} 27. Rd1+ {[%emt 0:00:08]} Kc6 {[%emt 0:01:51]} 28. Ra5 {[%emt 0:01:39]} Rbe7 {[%emt 0:01:28]} 29. f3 {[%emt 0:02:53]} Kb7 {[%emt 0:00:45]} 30. Rda1 {[%emt 0:00:28]} Nc8 {[%emt 0:00:41]} 31. Re1 {[%emt 0:00:51]} e4 {[%emt 0:00:25]} 32. fxe4 {[%emt 0:01:07]} Rxe4 {[%emt 0:00:15]} 33. Rxe4 {[%emt 0:00:36]} Rxe4 {[%emt 0:00:01]} 34. Kf2 {[%emt 0:00:12]} Rc4 {[%emt 0:01:10]} 35. Be5 {[%emt 0:00:11]} Nb6 {[%emt 0:00:34]} 36. Bd4 {[%emt 0:00:25]} Rc8 {[%emt 0:00:42]} 37. Ke2 {[%emt 0:01:18]} Re8+ {[%emt 0:00:06]} 38. Kd3 {[%emt 0:00:16]} Re1 {[%emt 0:00:51]} 39. Rb5 {[%emt 0:00:25]} Rd1+ {[%emt 0:00:31]} 40. Ke2 {[%emt 0:00:33]} Rc1 {[%emt 0:00:55]} 41. Kd2 {[%emt 0:00:12]} Ra1 {[%emt 0:00:21]} 42. c4 {[%emt 0:00:55]} Ra2+ {[%emt 0:00:04]} 43. Kd3 {[%emt 0:00:07]} Kc6 {[%emt 0:00:38]} 44. Bxb6 {[%emt 0:00:50]} axb6 {[%emt 0:00:06]} 45. Rg5 {[%emt 0:00:13]} Rf2 {[%emt 0:01:14]} 46. b5+ {[%emt 0:01:04]} Kd6 {[%emt 0:00:36]} 47. g3 {[%emt 0:00:38]} Rf1 {[%emt 0:00:41]} 48. Ke4 {[%emt 0:00:28]} Re1+ {[%emt 0:00:10]} 49. Kd3 {[%emt 0:00:26]} Rd1+ {[%emt 0:00:19]} 50. Kc2 {[%emt 0:00:22]} Rg1 {[%emt 0:00:31]} 51. Kd3 {[%emt 0:00:38]} 1/2-1/2